fUST/lending_fUST_20250113
["ID","MTS","AMOUNT","RATE_DAILY","PERIOD"]
[348673251,1736707832990,-500.0,0.00019178,2]
[348673253,1736707833000,-500.0,0.00019178,2]
[348673255,1736707833010,-500.0,0.00019178,2]
[348673257,1736707833020,-500.0,0.00019178,2]
[348673259,1736707833029,-500.0,0.00019178,2]
[348673261,1736707833039,-500.0,0.00019178,2]
[348673263,1736707833049,-500.0,0.00019178,2]
[348673265,1736707833059,-500.0,0.00019178,2]
[348673267,1736707833069,-500.0,0.00019178,2]
[348673269,1736707833079,-471.45801257,0.00019178,2]
[348673271,1736707833090,-500.0,0.00019178,2]
[348673273,1736707833101,-500.0,0.00019178,2]
[348673275,1736707833112,-628.77110079,0.00019178,2]
[348673277,1736707833122,-517.52,0.00019178,2]
[348673279,1736707833132,-589.35,0.00019178,2]
[348673281,1736707833142,-500.0,0.00019178,2]
[348673283,1736707833152,-500.0,0.00019178,2]
[348673285,1736707833162,-500.0,0.00019178,2]
[348673287,1736707833173,-511.14595634,0.00019178,2]
[348673289,1736707833184,-587.82425264,0.00019178,2]
[348673291,1736707833194,-500.0,0.00019178,2]
[348673293,1736707833204,-500.0,0.00019178,2]
[348673295,1736707833214,-500.0,0.00019178,2]
[348673297,1736707833224,-500.0,0.00019178,2]
[348673299,1736707833234,-500.0,0.00019178,2]
[348673301,1736707833243,-432.93638237,0.00019178,2]
[348673303,1736707833254,-500.0,0.00019178,2]
[348673305,1736707833264,-500.0,0.00019178,2]
[348673307,1736707833274,-500.0,0.00019178,2]
[348673310,1736707833285,-232.98650257,0.00019178,2]
[348673312,1736707833295,-626.59937798,0.00019178,2]
[348673314,1736707833305,-500.0,0.00019178,2]
[348673316,1736707833315,-500.0,0.00019178,2]
[348673318,1736707833324,-500.55265371,0.00019178,2]
[348673320,1736707833334,-500.0,0.00019178,2]
[348673322,1736707833344,-332.20616552,0.00019178,2]
[348673324,1736707833354,-500.0,0.00019178,2]
[348673326,1736707833364,-500.0,0.00019178,2]
[348673328,1736707833373,-500.0,0.00019178,2]
[348673330,1736707833383,-500.0,0.00019178,2]
[348673332,1736707833392,-500.0,0.00019178,2]
[348673334,1736707833402,-255.68561595,0.00019178,2]
[348673336,1736707833411,-500.0,0.00019178,2]
[348673338,1736707833421,-500.0,0.00019178,2]
[348673340,1736707833430,-500.0,0.00019178,2]
[348673342,1736707833440,-500.0,0.00019178,2]
[348673344,1736707833451,-463.8793802,0.00019178,2]
[348673346,1736707833462,-500.0,0.00019178,2]
[348673348,1736707833472,-500.0,0.00019178,2]
[348673350,1736707833482,-319.8091919,0.00019178,2]
[348673738,1736707838026,-180.1908081,0.00019178,2]
[348673741,1736707838035,-500.0,0.00019178,2]
[348673743,1736707838044,-500.0,0.00019178,2]
[348673744,1736707838054,-319.8091919,0.00019178,2]
[348673747,1736707838065,-180.1908081,0.00019178,2]
[348673749,1736707838075,-500.0,0.00019178,2]
[348673751,1736707838084,-500.0,0.00019178,2]
[348673753,1736707838093,-500.0,0.00019178,2]
[348673755,1736707838102,-500.0,0.00019178,2]
[348673757,1736707838111,-500.0,0.00019178,2]
[348673759,1736707838121,-500.0,0.00019178,2]
[348673761,1736707838130,-229.86936269,0.00019178,2]
[348673763,1736707838143,-500.0,0.00019178,2]
[348673765,1736707838152,-500.0,0.00019178,2]
[348673767,1736707838162,-500.0,0.00019178,2]
[348673770,1736707838171,-500.0,0.00019178,2]
[348673772,1736707838181,-500.0,0.00019178,2]
[348673774,1736707838190,-500.0,0.00019178,2]
[348673776,1736707838199,-500.0,0.00019178,2]
[348673778,1736707838209,-500.0,0.00019178,2]
[348673780,1736707838219,-500.0,0.00019178,2]
[348673782,1736707838228,-182.09454652,0.00019178,2]
[348673784,1736707838238,-500.0,0.00019178,2]
[348673786,1736707838247,-500.0,0.00019178,2]
[348673788,1736707838256,-500.25213752,0.00019178,2]
[348673790,1736707838266,-500.66391752,0.00019178,2]
[348673792,1736707838275,-500.0,0.00019178,2]
[348673794,1736707838284,-500.36409861,0.00019178,2]
[348673796,1736707838293,-500.0,0.00019178,2]
[348673798,1736707838303,-505.88130915,0.00019178,2]
[348673800,1736707838312,-501.07854203,0.00019178,2]
[348673802,1736707838321,-500.0,0.00019178,2]
[348673804,1736707838330,-510.35238592,0.00019178,2]
[348673806,1736707838340,-500.0,0.00019178,2]
[348673808,1736707838349,-200.0,0.00019178,2]
[348673810,1736707838359,-500.0,0.00019178,2]
[348673812,1736707838369,-500.0,0.00019178,2]
[348673814,1736707838378,-500.0,0.00019178,2]
[348673816,1736707838388,-500.0,0.00019178,2]
[348673818,1736707838397,-500.0,0.00019178,2]
[348673820,1736707838407,-500.0,0.00019178,2]
[348673822,1736707838416,-500.0,0.00019178,2]
[348673824,1736707838425,-500.0,0.00019178,2]
[348673826,1736707838435,-546.97670704,0.00019178,2]
[348673828,1736707838444,-500.0,0.00019178,2]
[348673830,1736707838454,-500.0,0.00019178,2]
[348673832,1736707838464,-500.0,0.00019178,2]
[348673834,1736707838473,-500.0,0.00019178,2]
[348673836,1736707838483,-500.0,0.00019178,2]
[348673838,1736707838492,-150.0,0.00019178,2]
[348673840,1736707838501,-601.6277443,0.00019178,2]
[348673842,1736707838510,-500.0,0.00019178,2]
[348673844,1736707838519,-500.0,0.00019178,2]
[348673846,1736707838529,-436.62868547,0.00019178,2]
[348673848,1736707838538,-500.0,0.00019178,2]
[348673850,1736707838547,-381.03952581,0.00019178,2]
[348673852,1736707838557,-500.0,0.00019178,2]
[348673854,1736707838566,-500.0,0.00019178,2]
[348673856,1736707838577,-515.15025277,0.00019178,2]
[348673858,1736707838587,-1638.41,0.00019178,2]
[348673861,1736707838596,-500.0,0.00019178,2]
[348673863,1736707838605,-500.0,0.00019178,2]
[348673865,1736707838615,-500.0,0.00019178,2]
[348673867,1736707838624,-500.0,0.00019178,2]
[348673869,1736707838633,-632.75447161,0.00019178,2]
[348673871,1736707838643,-500.0,0.00019178,2]
[348673873,1736707838655,-499.56232087,0.00019178,2]
[348673875,1736707838665,-595.13322512,0.00019178,2]
[348673877,1736707838676,-500.0,0.00019178,2]
[348673879,1736707838686,-500.0,0.00019178,2]
[348673881,1736707838695,-500.0,0.00019178,2]
[348673883,1736707838706,-500.0,0.00019178,2]
[348673885,1736707838716,-500.0,0.00019178,2]
[348673886,1736707838725,-500.0,0.00019178,2]
[348673888,1736707838735,-242.84735177,0.00019178,2]
[348673891,1736707838744,-500.0,0.00019178,2]
[348673893,1736707838754,-500.0,0.00019178,2]
[348673895,1736707838764,-500.0,0.00019178,2]
[348673896,1736707838773,-518.71050624,0.00019178,2]
[348673898,1736707838782,-500.0,0.00019178,2]
[348673900,1736707838791,-500.0,0.00019178,2]
[348673902,1736707838802,-500.0,0.00019178,2]
[348673905,1736707838812,-381.03952581,0.00019178,2]
[348673906,1736707838822,-154.99,0.00019178,2]
[348673909,1736707838831,-24900.0,0.00019193,2]
[348673910,1736707838841,-332.843,0.00019444,2]
[348673912,1736707838851,-589.35,0.00019452,3]
[348673915,1736707838860,-500.0,0.00019452,3]
[348673917,1736707838871,-500.0,0.00019452,2]
[348673919,1736707838880,-500.0,0.00019452,3]
[348673921,1736707838890,-500.0,0.00019452,3]
[348673923,1736707838899,-500.0,0.00019452,3]
[348673925,1736707838908,-1638.41,0.00019452,3]
[348673938,1736707838917,-500.0,0.00019452,3]
[348673940,1736707839033,-530.99,0.00019452,3]
[348673942,1736707839044,-239.60298842,0.00019452,3]
[348673944,1736707839053,-500.0,0.00019452,3]
[348673946,1736707839063,-500.0,0.00019452,3]
[348673948,1736707839072,-500.0,0.00019725,3]
[348673950,1736707839082,-589.35,0.00019726,3]
[348673952,1736707839091,-500.0,0.00019726,2]
[348673954,1736707839101,-500.0,0.00019726,3]
[348673956,1736707839111,-500.0,0.00019726,3]
[348673958,1736707839120,-500.0,0.00019726,3]
[348673960,1736707839129,-1638.41,0.00019726,3]
[348673962,1736707839138,-749.15086992,0.0001973,2]
[348673964,1736707839147,-515.1,0.00019776,3]
[348673966,1736707839157,-500.0,0.00019777,3]
[348673968,1736707839167,-500.0,0.00019777,3]
[348673970,1736707839176,-500.0,0.00019777,3]
[348673972,1736707839185,-500.0,0.00019777,3]
[348673974,1736707839195,-507.91862511,0.00019777,3]
[348673976,1736707839204,-169.877828,0.00019851,2]
[348673978,1736707839214,-998.545075,0.00019955,2]
[348673980,1736707839223,-853.81,0.0002,2]
[348673982,1736707839232,-300.0,0.0002,8]
[348673984,1736707839242,-589.35,0.0002,3]
[348673986,1736707839251,-564.8016509,0.0002,2]
[348673988,1736707839260,-500.0,0.0002,3]
[348673990,1736707839269,-500.0,0.0002,3]
[348673992,1736707839279,-500.0,0.0002,3]
[348673994,1736707839288,-1638.41,0.0002,3]
[348673996,1736707839297,-515.1,0.0002005,3]
[348673998,1736707839307,-500.0,0.00020051,3]
[348673999,1736707839317,-589.35,0.00020273,3]
[348674002,1736707839326,-500.0,0.00020273,3]
[348674004,1736707839336,-500.0,0.00020273,3]
[348674006,1736707839346,-500.0,0.00020273,3]
[348674008,1736707839355,-1638.41,0.00020273,3]
[348674010,1736707839364,-515.1,0.00020324,3]
[348674012,1736707839373,-500.0,0.00020325,3]
[348674014,1736707839383,-400.0,0.00020447,2]
[348674016,1736707839392,-589.35,0.00020547,3]
[348674018,1736707839401,-500.0,0.00020547,3]
[348674020,1736707839410,-500.0,0.00020547,3]
[348674022,1736707839420,-500.0,0.00020547,3]
[348674024,1736707839430,-1638.41,0.00020547,3]
[348674026,1736707839439,-500.0,0.00020547,3]
[348674028,1736707839449,-515.1,0.00020598,3]
[348674030,1736707839458,-500.0,0.00020599,3]
[348674032,1736707839467,-589.35,0.00020821,3]
[348674034,1736707839476,-500.0,0.00020821,3]
[348674036,1736707839486,-500.0,0.00020821,3]
[348674038,1736707839495,-500.0,0.00020821,3]
[348674040,1736707839504,-1638.41,0.00020821,3]
[348674041,1736707839513,-515.1,0.00020872,3]
[348674044,1736707839523,-500.0,0.00020873,3]
[348674047,1736707839532,-420.0,0.00020898,2]
[348674052,1736707839543,-631.1480552,0.0002098,2]
[348674054,1736707839552,-631.1480552,0.0002099,2]
[348674057,1736707839562,-631.1480552,0.00020994,2]
[348674059,1736707839571,-589.35,0.00021095,3]
[348674062,1736707839580,-500.0,0.00021095,3]
[348674064,1736707839590,-500.0,0.00021095,3]
[348674066,1736707839599,-500.0,0.00021095,3]
[348674068,1736707839608,-1638.41,0.00021095,3]
[348674070,1736707839618,-515.1,0.00021146,3]
[348674072,1736707839627,-500.0,0.00021147,3]
[348674074,1736707839637,-589.35,0.00021369,3]
[348674076,1736707839646,-500.0,0.00021369,3]
[348674078,1736707839656,-500.0,0.00021369,3]
[348674080,1736707839668,-500.0,0.00021369,3]
[348674082,1736707839678,-1638.41,0.00021369,3]
[348674084,1736707839687,-515.1,0.0002142,3]
[348674085,1736707839697,-500.0,0.00021421,3]
[348674088,1736707839708,-394.0,0.00021437,2]
[348674089,1736707839719,-300.0,0.000215,9]
[348674092,1736707839728,-589.35,0.00021643,3]
[348674094,1736707839739,-500.0,0.00021643,3]
[348674096,1736707839749,-500.0,0.00021643,3]
[348674098,1736707839758,-500.0,0.00021643,3]
[348674100,1736707839767,-1638.41,0.00021643,3]
[348674102,1736707839777,-515.1,0.00021694,3]
[348674104,1736707839786,-500.0,0.00021695,3]
[348674106,1736707839795,-1200.0,0.00021749,2]
[348674108,1736707839806,-589.35,0.00021917,3]
[348674110,1736707839816,-500.0,0.00021917,3]
[348674112,1736707839825,-500.0,0.00021917,3]
[348674113,1736707839835,-500.0,0.00021917,3]
[348674114,1736707839844,-1638.41,0.00021917,3]
[348674115,1736707839854,-515.1,0.00021968,3]
[348674116,1736707839863,-500.0,0.00021969,3]
[348674117,1736707839872,-321.98987103,0.0002219,2]
[348674118,1736707839882,-589.35,0.00022191,3]
[348674119,1736707839892,-435.32919529,0.00022191,3]
[348674120,1736707839902,-500.0,0.00022191,3]
[348674121,1736707839911,-152.37713271,0.00022191,3]
[348674122,1736707839920,-1638.41,0.00022191,3]
[348674123,1736707839930,-515.1,0.00022242,3]
[348674124,1736707839939,-500.0,0.00022243,3]
[348674125,1736707839949,-589.35,0.00022465,3]
[348674126,1736707839960,-500.0,0.00022465,3]
[348674127,1736707839970,-1638.41,0.00022465,3]
[348674128,1736707839979,-515.1,0.00022516,3]
[348674129,1736707839988,-500.0,0.00022517,3]
[348674130,1736707839998,-566.096,0.0002252,2]
[348674131,1736707840007,-589.35,0.00022739,3]
[348674132,1736707840016,-500.0,0.00022739,3]
[348674133,1736707840026,-1255.36661669,0.00022739,3]
[348674234,1736707846016,-500.0,0.00019777,3]
[348674235,1736707846034,-383.04338331,0.00022739,3]
[348674236,1736707846046,-587.0,0.00022775,2]
[348674237,1736707846056,-500.0,0.00022791,3]
[348674238,1736707846067,-300.0,0.00023,10]
[348674239,1736707846078,-589.35,0.00023013,3]
[348674240,1736707846089,-500.0,0.00023013,3]
[348674241,1736707846101,-1638.41,0.00023013,3]
[348674242,1736707846115,-500.0,0.00023065,3]
[348674243,1736707846127,-589.35,0.00023287,3]
[348674244,1736707846138,-500.0,0.00023287,3]
[348674245,1736707846153,-1638.41,0.00023287,3]
[348674246,1736707846165,-500.0,0.00023339,3]
[348674247,1736707846176,-160.0,0.00023513,3]
[348674248,1736707846187,-589.35,0.00023561,3]
[348674249,1736707846198,-500.0,0.00023561,3]
[348674250,1736707846210,-1638.41,0.00023561,3]
[348674251,1736707846221,-2000.0,0.000236,2]
[348674252,1736707846231,-500.0,0.00023613,3]
[348674253,1736707846243,-3000.0,0.00023618,2]
[348674254,1736707846255,-724.75805064,0.00023678,35]
[348674255,1736707846266,-151.0,0.000237,9]
[348674256,1736707846277,-151.0,0.00023712,7]
[348674257,1736707846289,-151.0,0.00023718,7]
[348674258,1736707846300,-206.062601,0.00023718,7]
[348674259,1736707846311,-151.0,0.00023718,7]
[348674260,1736707846321,-151.0,0.00023718,7]
[348674261,1736707846331,-151.0,0.00023718,7]
[348674262,1736707846341,-150.14,0.00023718,10]
[348674263,1736707846351,-829757.26939274,0.00023725,10]
[348674265,1736708524069,400.0,0.00013973,2]
[348674378,1736709032352,-2558.81691711,0.00018598,2]
[348674380,1736709032361,-159.89239171,0.00018786,2]
[348674382,1736709032371,-288.25873421,0.00018886,2]
[348674384,1736709032380,-1551.02595307,0.000189,2]
[348674386,1736709032390,-998.545076,0.00018907,2]
[348674388,1736709032399,-300.0,0.00019177,2]
[348674390,1736709032409,-501.18358387,0.00019178,2]
[348674392,1736709032419,-500.0,0.00019178,2]
[348674394,1736709032428,-637.58638387,0.00019178,2]
[348674395,1736709032437,-500.0,0.00019178,2]
[348674396,1736709032446,-536.09698242,0.00019178,2]
[348674397,1736709032455,-503.44772345,0.00019178,2]
[348674398,1736709032464,-500.0,0.00019178,2]
[348674399,1736709032474,-500.0,0.00019178,2]
[348674400,1736709032482,-500.0,0.00019178,2]
[348674401,1736709032492,-500.0,0.00019178,2]
[348674402,1736709032501,-500.0,0.00019178,2]
[348674403,1736709032510,-500.0,0.00019178,2]
[348674404,1736709032520,-169.877828,0.00019178,2]
[348674405,1736709032531,-185.79495439,0.00019452,3]
[348674406,1736709032541,-304.625,0.00019452,2]
[348674407,1736709032550,-500.0,0.00019452,3]
[348674408,1736709032559,-500.0,0.00019452,3]
[348674409,1736709032568,-500.0,0.00019452,3]
[348674410,1736709032577,-500.0,0.00019452,3]
[348674411,1736709032587,-500.0,0.00019519,3]
[348674412,1736709032595,-500.0,0.00019519,3]
[348674413,1736709032605,-500.0,0.00019519,3]
[348674414,1736709032614,-500.0,0.00019519,3]
[348674415,1736709032624,-367.00515623,0.00019519,3]
[348674416,1736709032633,-500.0,0.00019519,2]
[348674417,1736709032642,-453.91751671,0.00019519,3]
[348674418,1736709032651,-500.0,0.00019519,3]
[348674419,1736709032660,-500.0,0.00019519,2]
[348674421,1736709032669,-500.0,0.00019519,3]
[348674422,1736709032679,-568.57,0.00019519,3]
[348674425,1736709032689,-500.0,0.00019519,3]
[348674426,1736709032698,-500.0,0.00019519,3]
[348674428,1736709032707,-500.0,0.00019519,3]
[348674430,1736709032716,-365.1754427,0.00019519,3]
[348674432,1736709032726,-500.0,0.00019519,3]
[348674434,1736709032735,-500.0,0.00019519,3]
[348674436,1736709032744,-523.5,0.00019519,3]
[348674438,1736709032753,-24900.0,0.0001952,2]
[348674440,1736709032763,-242.61861716,0.00019626,2]
[348674442,1736709032772,-500.0,0.00019725,3]
[348674444,1736709032781,-500.0,0.00019726,3]
[348674446,1736709032790,-500.0,0.00019726,3]
[348674448,1736709032800,-500.0,0.00019726,3]
[348674450,1736709032809,-500.0,0.00019726,3]
[348674452,1736709032819,-646.01,0.00019793,2]
[348674454,1736709032827,-568.57,0.00019793,3]
[348674456,1736709032837,-768.42,0.0002,2]
[348674458,1736709032846,-2031.0,0.0002,2]
[348674460,1736709032855,-300.0,0.0002,8]
[348674462,1736709032864,-500.0,0.0002,3]
[348674464,1736709032873,-500.0,0.0002,3]
[348674466,1736709032882,-500.0,0.0002,3]
[348674468,1736709032891,-500.0,0.0002,3]
[348674470,1736709032901,-568.57,0.00020067,3]
[348674472,1736709032910,-500.0,0.00020273,3]
[348674474,1736709032919,-482.61557118,0.00020273,3]
[348674477,1736709032931,-17.38442882,0.00020273,3]
[348674479,1736709032941,-500.0,0.00020273,3]
[348674481,1736709032950,-500.0,0.00020273,3]
[348674483,1736709032959,-568.57,0.00020341,3]
[348674485,1736709032969,-400.0,0.00020447,2]
[348674487,1736709032978,-500.0,0.00020547,3]
[348674489,1736709032987,-500.0,0.00020547,3]
[348674491,1736709032996,-500.0,0.00020547,3]
[348674493,1736709033006,-491.46,0.00020547,3]
[348674495,1736709033016,-568.57,0.00020615,3]
[348674497,1736709033025,-500.0,0.00020821,3]
[348674499,1736709033034,-500.0,0.00020821,3]
[348674501,1736709033045,-500.0,0.00020821,3]
[348674503,1736709033054,-568.57,0.00020889,3]
[348674505,1736709033063,-420.0,0.00020899,2]
[348674507,1736709033073,-220.07272605,0.000209,2]
[348674509,1736709033083,-180.435975,0.0002093,2]
[348674511,1736709033093,-3000.0,0.00021,2]
[348674513,1736709033103,-3000.0,0.0002101,2]
[348674515,1736709033112,-3000.0,0.0002102,2]
[348674517,1736709033122,-3000.0,0.0002103,2]
[348674519,1736709033132,-3000.0,0.0002104,2]
[348674521,1736709033142,-3000.0,0.0002105,2]
[348674522,1736709033151,-3000.0,0.0002106,2]
[348674523,1736709033161,-3000.0,0.0002107,2]
[348674525,1736709033170,-3000.0,0.0002108,2]
[348674527,1736709033180,-3000.0,0.0002109,2]
[348674529,1736709033189,-500.0,0.00021095,3]
[348674531,1736709033199,-500.0,0.00021095,3]
[348674533,1736709033211,-625.64368425,0.00021095,3]
[348674536,1736709033220,-3000.0,0.000211,2]
[348674538,1736709033230,-3000.0,0.0002111,2]
[348674540,1736709033239,-3000.0,0.0002112,2]
[348674542,1736709033249,-3000.0,0.0002113,2]
[348674544,1736709033258,-3000.0,0.0002114,2]
[348674545,1736709033268,-1722.32630223,0.0002115,2]
[348674548,1736709033281,-1077.11128122,0.0002115,2]
[348674550,1736709033293,-200.56241655,0.0002115,2]
[348674552,1736709033302,-1697.06153241,0.0002116,2]
[348674554,1736709033315,-1302.93846759,0.0002116,2]
[348674556,1736709033324,-568.57,0.00021163,3]
[348674558,1736709033334,-3000.0,0.0002117,2]
[348674560,1736709033344,-3762.272485,0.0002118,2]
[348674562,1736709033353,-500.0,0.00021369,3]
[348674564,1736709033363,-194.13909755,0.00021369,3]
[348674566,1736709033372,-568.57,0.00021436,3]
[348674568,1736709033382,-300.0,0.000215,9]
[348674570,1736709033391,-242.61861716,0.00021513,2]
[348674572,1736709033400,-2031.0,0.000216,4]
[348674575,1736709033411,-500.0,0.00021643,3]
[348674576,1736709033420,-568.57,0.0002171,3]
[348674578,1736709033430,-422.82555917,0.00021749,2]
[348674581,1736709033442,-777.17444083,0.00021749,2]
[348674583,1736709033451,-500.0,0.00021917,3]
[348674585,1736709033461,-568.57,0.00021984,3]
[348674587,1736709033471,-224.0,0.00022,2]
[348674589,1736709033480,-500.0,0.00022191,3]
[348674591,1736709033490,-224.0,0.00022192,2]
[348674593,1736709033499,-568.57,0.00022258,3]
[348674595,1736709033509,-180.43597499,0.00022281,2]
[348674597,1736709033519,-220.07272604,0.000224,2]
[348674599,1736709033532,-500.0,0.00022465,3]
[348674601,1736709033543,-343.26175297,0.00022519,2]
[348674603,1736709033552,-177.83405919,0.00022519,2]
[348674605,1736709033563,-542.616,0.0002252,2]
[348674607,1736709033573,-568.57,0.00022532,3]
[348674609,1736709033582,-289.6802954,0.00022739,3]
[348674611,1736709033592,-587.0,0.00022776,2]
[348674613,1736709033604,-568.57,0.00022806,3]
[348674615,1736709033613,-153.0,0.00022904,2]
[348674617,1736709033622,-306.7889744,0.00022904,2]
[348674619,1736709033631,-365.3327756,0.00022904,2]
[348674621,1736709033641,-153.8922372,0.00022904,2]
[348674623,1736709033650,-214.8637861,0.00022904,2]
[348674625,1736709033659,-153.8922372,0.00022904,2]
[348674627,1736709033668,-214.8637861,0.00022904,2]
[348674629,1736709033677,-300.0,0.00023,10]
[348674631,1736709033687,-224.0,0.00023014,2]
[348674633,1736709033697,-568.57,0.0002308,3]
[348674635,1736709033706,-6520.93538175,0.00023208,2]
[348675026,1736709037978,-224.86316937,0.00019526,2]
[348675028,1736709037987,-394.0,0.00020889,2]
[348675030,1736709037997,-500.0,0.00021039,2]
[348675032,1736709038006,-500.0,0.00021039,2]
[348675034,1736709038015,-500.0,0.00021039,2]
[348675036,1736709038025,-500.0,0.00021039,2]
[348675038,1736709038034,-288.64983816,0.00021039,2]
[348675040,1736709038043,-500.0,0.00021039,2]
[348675042,1736709038052,-500.0,0.00021039,2]
[348675044,1736709038062,-500.0,0.00021039,2]
[348675046,1736709038071,-500.0,0.00021039,2]
[348675048,1736709038080,-500.0,0.00021039,2]
[348675050,1736709038090,-500.0,0.00021039,2]
[348675052,1736709038100,-500.0,0.00021039,2]
[348675054,1736709038109,-500.0,0.00021039,2]
[348675056,1736709038119,-387.66193296,0.00021039,2]
[348675058,1736709038128,-500.0,0.00021039,2]
[348675061,1736709038137,-500.0,0.00021039,2]
[348675065,1736709038147,-500.0,0.00021039,2]
[348675080,1736709038248,-500.0,0.00021039,2]
[348675082,1736709038259,-500.0,0.00021039,2]
[348675084,1736709038268,-500.0,0.00021039,2]
[348675086,1736709038277,-642.12107951,0.00021039,2]
[348675088,1736709038287,-500.0,0.00021039,2]
[348675090,1736709038296,-500.0,0.00021039,2]
[348675092,1736709038306,-500.0,0.00021039,2]
[348675094,1736709038315,-500.0,0.00021039,2]
[348675096,1736709038325,-500.0,0.00021039,2]
[348675098,1736709038335,-500.0,0.00021039,2]
[348675100,1736709038344,-500.0,0.00021039,2]
[348675102,1736709038353,-500.0,0.00021039,2]
[348675104,1736709038362,-500.0,0.00021039,2]
[348675106,1736709038372,-500.0,0.00021039,2]
[348675108,1736709038381,-500.0,0.00021039,2]
[348675110,1736709038390,-500.0,0.00021039,2]
[348675112,1736709038399,-500.0,0.00021039,2]
[348675114,1736709038409,-500.0,0.00021039,2]
[348675116,1736709038418,-500.0,0.00021039,2]
[348675118,1736709038428,-500.0,0.00021039,2]
[348675120,1736709038437,-565.84042941,0.00021039,2]
[348675122,1736709038447,-500.0,0.00021039,2]
[348675124,1736709038456,-500.0,0.00021039,2]
[348675126,1736709038464,-500.0,0.00021039,2]
[348675128,1736709038474,-500.0,0.00021039,2]
[348675131,1736709038484,-500.0,0.00021039,2]
[348675133,1736709038494,-500.0,0.00021039,2]
[348675135,1736709038503,-268.20844904,0.00021039,2]
[348675136,1736709038512,-500.0,0.00021039,2]
[348675138,1736709038521,-500.0,0.00021039,2]
[348675140,1736709038535,-500.0,0.00021039,2]
[348675142,1736709038544,-500.0,0.00021039,2]
[348675144,1736709038554,-500.0,0.00021039,2]
[348675147,1736709038564,-500.0,0.00021039,2]
[348675148,1736709038573,-500.0,0.00021039,2]
[348675151,1736709038583,-500.0,0.00021039,2]
[348675152,1736709038592,-379.85340009,0.00021039,2]
[348675155,1736709038602,-500.0,0.00021039,2]
[348675157,1736709038612,-500.0,0.00021039,2]
[348675159,1736709038622,-500.0,0.00021039,2]
[348675161,1736709038631,-500.0,0.00021039,2]
[348675163,1736709038641,-500.0,0.00021039,2]
[348675165,1736709038650,-500.0,0.00021039,2]
[348675167,1736709038659,-500.0,0.00021039,2]
[348675169,1736709038668,-500.0,0.00021039,2]
[348675171,1736709038677,-500.0,0.00021039,2]
[348675173,1736709038687,-500.0,0.00021039,2]
[348675175,1736709038696,-500.0,0.00021039,2]
[348675177,1736709038705,-500.0,0.00021039,2]
[348675179,1736709038714,-500.0,0.00021039,2]
[348675181,1736709038723,-500.0,0.00021039,2]
[348675183,1736709038732,-500.0,0.00021039,2]
[348675185,1736709038741,-500.0,0.00021039,2]
[348675187,1736709038750,-500.0,0.00021039,2]
[348675188,1736709038759,-500.0,0.00021039,2]
[348675190,1736709038769,-500.0,0.00021039,2]
[348675192,1736709038778,-276.4759286,0.00021039,2]
[348675195,1736709038787,-500.0,0.00021039,2]
[348675197,1736709038797,-500.0,0.00021039,2]